Cogmind - Beta 15 @@@ ROGUE MODE // 2025.07.17 @ 08:51:14 Player: The Gourd Result: Self-destructed Performance ------------- Evolutions (4) 2000 Regions Visited (7) 1400 Robots Destroyed (114) 570 Value Destroyed (3511) 3511 Prototype IDs (28) 560 Alien Tech Used (0) 0 Bonus (1929) 1929 TOTAL SCORE: 9970 Bonus ------- Triggered High Security 500 High Alert Combat Kills 49 Follower Combat Kills 1754 Registered with UFD 300 Met Optimus in HQ 500 Friendly Fire -1174 Cogmind --------- Core Integrity 467/850 Matter 298/300 Energy 200/200 System Corruption 0% Temperature Cool (0) Movement Walking (110) Location -6/Lower Caves Parts ------- > --- POWER (2) -------- Cold Fusion Reactor > --- PROPULSION (5) --- Cargo Legs Potential Leg > --- UTILITY (5) ------ Large Storage Unit Enhanced Scrap Shield Makeshift Hacking Suite Makeshift Hacking Suite > --- WEAPON (3) ------- Disruptor Cannon Subdweller Beam Cannon Rocket Array > --- INVENTORY (15) --- Subdweller Power Source Nuclear Pulse Thruster High-capacity Matter Pod (200) Experimental Sensor Array Medium Reactive Plating Hacking Suite Subdweller Machine Gun Subdweller Machine Gun Advanced Assault Cannon Siege Cannon Replica Peak State ------------ > --- POWER ------------ Cold Fusion Reactor Cold Fusion Reactor > --- PROPULSION ------- Aluminum Leg Carbon-fiber Leg Cargo Legs Potential Leg > --- UTILITY ---------- Large Storage Unit Makeshift Hacking Suite Makeshift Hacking Suite System Shield A0-MCA's Component Scanner > --- WEAPON ----------- Rocket Array Rocket Array Multitool > --- INVENTORY -------- Subdweller Power Source Nuclear Pulse Thruster High-capacity Matter Pod Experimental Sensor Array Medium Reactive Plating Enhanced Scrap Shield Hacking Suite Disruptor Cannon Subdweller Beam Cannon Subdweller Machine Gun Subdweller Machine Gun Siege Cannon Replica [Rating: 81] Favorites ----------- Power Subdweller Power Source Engine Subdweller Power Source Reactor Cold Fusion Reactor Propulsion Cargo Legs Treads Light Treads Leg Cargo Legs Wheel Wheel Utility Large Storage Unit Device V3-11A's Pendant Storage Large Storage Unit Processor A0-MCA's Component Scanner Hackware Makeshift System Shield Protection Light Armor Plating Weapon Battle Cannon Energy Cannon Subdweller Beam Cannon Ballistic Gun Assault Rifle Ballistic Cannon Battle Cannon Launcher Subdweller Shrapnel Launcher Special Weapon Multitool Slashing Weapon Mining Claw Build | -11 -10 -10 -10 -8 -8 -6 -6 ------- Run | Yrd Mat Min Sub Rec Scr Fac Low Slots Evolved 8 | . . . . . . 8 . Power 1 | . . . . . . 1 . Propulsion 3 | . . . . . . 3 . Utility 3 | . . . . . . 3 . Weapon 1 | . . . . . . 1 . Parts Attached 57 | 7 9 3 14 2 6 13 3 Power 6 | 1 . . 2 . 1 2 . Engine 4 | 1 . . 2 . 1 . . Core . | . . . . . . . . Reactor 2 | . . . . . . 2 . Propulsion 8 | 2 1 . 2 . . 3 . Treads 3 | 2 . . 1 . . . . Leg 4 | . . . 1 . . 3 . Wheel 1 | . 1 . . . . . . Hover . | . . . . . . . . Flight . | . . . . . . . . Utility 17 | 2 4 2 2 2 . 4 1 Device 2 | 1 . . 1 . . . . Storage 4 | 1 3 . . . . . . Processor 1 | . . . . . . 1 . Hackware 4 | . . . 1 . . 3 . Protection 6 | . 1 2 . 2 . . 1 Artifact . | . . . . . . . . Weapon 26 | 2 4 1 8 . 5 4 2 Energy Gun . | . . . . . . . . Energy Cannon 3 | . . . 1 . 1 . 1 Ballistic Gun 8 | 2 2 . 3 . . . 1 Ballistic Cannon 4 | . . . 3 . . 1 . Launcher 8 | . 1 1 1 . 3 2 . Special Weapon 2 | . . . . . 1 1 . Impact Weapon . | . . . . . . . . Slashing Weapon 1 | . 1 . . . . . . Piercing Weapon . | . . . . . . . . Special Melee Weapon . | . . . . . . . . Unidentified Prototypes 4 | . . . 1 . . 3 . Parts Lost 10 | . . 1 2 . 2 . 5 Power 1 | . . . . . . . 1 Propulsion 3 | . . . 1 . . . 2 Utility 2 | . . 1 . . 1 . . Weapon 4 | . . . 1 . 1 . 2 Highest Loss Streak 2 | . . 1 1 . 1 . 2 To Critical Strikes . | . . . . . . . . Average Backups 12 | 4 11 14 13 14 13 9 10 Power 1 | . 1 1 . 1 1 1 1 Propulsion 2 | 1 2 2 2 3 2 . . Utility 3 | . 3 4 3 4 3 3 3 Weapon 4 | 1 3 5 4 4 4 4 4 Tool/Special . | . . . . . . . . Unused Backups 23 | 1 4 2 3 . 6 . 7 Power 3 | . . 1 1 . . . 1 Propulsion 6 | . 1 . 1 . 3 . 1 Utility 7 | . . . 1 . 2 . 4 Weapon 6 | 1 3 1 . . . . 1 Tool/Special 1 | . . . . . 1 . . Average Slot Usage (%) 89 | . 98 99 90 88 87 73 78 Engine 10 | . 14 14 11 11 11 . . Reactor 1 | . . . . . . 11 10 Treads 8 | . 27 28 8 . . . . Leg 8 | . . . 7 11 11 23 18 Device 7 | . 2 . 10 11 11 . . Storage 11 | . 14 14 11 11 11 6 6 Hackware 7 | . . . 6 11 9 11 17 Protection 9 | . 11 13 8 11 11 . 2 Energy Cannon 4 | . . . . 11 11 1 3 Ballistic Gun 3 | . 20 7 2 . . . . Ballistic Cannon 4 | . . . 16 . . . . Launcher 8 | . 4 20 4 11 10 11 10 Peak Build Rating 81 | 7 8 11 35 35 43 78 81 Average Rating 30 | 6 7 8 28 33 34 65 74 On Entrance 26 | . 7 8 11 35 33 43 78 Naked Turns . | . . . . . . . . Heaviest Build 75 | 14 33 35 45 45 49 60 75 Greatest Support 110 | 40 40 40 55 55 55 110 110 Greatest Overweight (x) 3 | . 3 . . . . 1 . Average Overweight (x) . | . . . . . . . . Largest Inventory Capacity 15 | 8 15 15 15 15 15 15 15 Average Capacity 14 | 7 14 15 15 15 15 15 15 Most Carried 15 | 6 14 15 15 15 15 15 15 Average Carried 13 | 4 11 14 14 15 14 11 12 Final Capacity 15 | 8 15 15 15 15 15 15 15 Final Carried 15 | 6 14 15 15 15 15 10 12 Class Distribution -------------------- 87% | Mutant 5% | Hacker-Gunner 3% | Commander-Mutant Dominant Class ---------------- Mutant | -10/Materials Mutant | -10/Mines Mutant | -10/Subcaves Mutant | -8/Recycling Mutant | -8/Scraptown Commander-Mutant | -6/Factory Hacker-Gunner | -6/Lower Caves Resources | -11 -10 -10 -10 -8 -8 -6 -6 ----------- Run | Yrd Mat Min Sub Rec Scr Fac Low Matter Collected 3481 | 342 408 327 786 45 820 295 458 Remotely . | . . . . . . . . Salvage Created 3656 | 174 441 120 67 104 1832 309 609 Parts 231 | 22 43 10 9 5 103 14 25 Haulers Intercepted 3 | . 2 . . . . 1 . Recyclers Shooed 1 | 1 . . . . . . . Parts Field Recycled . | . . . . . . . . Retrieved Matter . | . . . . . . . . Parts Self-Destructed 23 | . . . 13 . 6 . 4 Prevented . | . . . . . . . . Kills | -11 -10 -10 -10 -8 -8 -6 -6 ------- Run | Yrd Mat Min Sub Rec Scr Fac Low Combat Hostiles Destroyed 81 | . 16 5 5 2 33 3 17 Guns 10 | . 5 1 3 . . 1 . Cannons 4 | . . . . 1 3 . . AOE 66 | . 11 4 2 . 30 2 17 Classes Destroyed 20 | 2 7 . 2 1 8 . . Worker 2 | . 2 . . . . . . Builder 3 | . 2 . . . . 1 . Tunneler 9 | 7 . 2 . . . . . Hauler 3 | . 2 . . . . 1 . Recycler 1 | 1 . . . . . . . Operator 2 | . 1 . . . . 1 . Turret 1 | . . . 1 . . . . Watcher 1 | . 1 . . . . . . Swarmer 19 | . 9 3 3 . . . 4 Grunt 22 | . 7 2 . . . 2 11 Sentry 4 | . . . . 2 . . 2 Subdweller 6 | . . . 2 . 4 . . Federalist 6 | . . . . . 6 . . Explorer 3 | . . . . . 3 . . Ranger 3 | . . . . . 2 1 . Guru 1 | . . . . . 1 . . Scrapper 25 | . . . . . 21 1 3 Elite 1 | . . . . . 1 . . Savage 1 | . . . . . 1 . . Mutant 1 | . . . . . 1 . . Best Kill Streak 10 | 3 4 3 2 1 10 4 6 Combat Bots Only 10 | . 3 3 2 1 10 2 6 Max Kills in Single Turn 5 | 1 2 2 1 1 4 3 5 Gunslinging . | . . . . . . . . Exploded 5 | . 2 2 1 . 2 1 5 Melee . | . . . . . . . . Uniques/NPCs Destroyed . | . . . . . . . . Combat | -11 -10 -10 -10 -8 -8 -6 -6 -------- Run | Yrd Mat Min Sub Rec Scr Fac Low Hostile Shots Fired 208 | . 37 15 42 . 41 15 58 Missed 62 | . 11 3 17 . 8 2 21 Hits 146 | . 26 12 25 . 33 13 37 Projectile 146 | . 26 12 25 . 33 13 37 AOE 1 | . . . 1 . . . . Critical Strikes 3 | . 1 . . . 1 1 . Damage Taken 3417 | . 270 181 761 . 648 850 707 Core 561 | . 29 23 20 . 106 338 45 Absorbed by Shields . | . . . . . . . . Regen/Repaired (Parts) 53 | . 53 . . . . . . Core Remaining (%) 64 | 100 . . . . 28 . . Volleys Fired 204 | 18 45 13 38 5 62 12 11 Largest 3 | 2 2 2 2 1 1 3 3 Hottest 190 | 40 50 63 66 80 80 190 156 Shots Fired 293 | 36 70 16 57 5 60 25 24 Gun 129 | 36 57 10 12 . . 9 5 Cannon 76 | . . . 38 5 13 14 6 Launcher 86 | . 13 6 7 . 45 2 13 Special 2 | . . . . . 2 . . Kinetic 193 | 36 57 10 54 . 20 11 5 Thermal 31 | . . . . 5 13 12 1 Explosive 62 | . 13 6 3 . 25 2 13 Electromagnetic 5 | . . . . . . . 5 Robot Hit Streak 7 | 7 5 7 5 3 7 5 5 Robot Miss Streak 4 | 1 4 2 2 1 2 4 3 Penetration Max . | . . . . . . . . Secondary Targets 1 | . 1 . . . . . . Max Gunslinging Chain 1 | . 1 . . . . . . Shots Hit Robots 140 | 25 43 9 13 4 24 12 10 Core Hits 219 | 11 41 12 10 1 64 10 70 Critical Kills 1 | . . . . 1 . . . Critical Parts Destroyed . | . . . . . . . . Critical Strikes 1 | . . . . 1 . . . Meltdown 1 | . . . . 1 . . . Melee Attacks 11 | . 8 . 3 . . . . Impact . | . . . . . . . . Slashing 11 | . 8 . 3 . . . . Piercing . | . . . . . . . . Sneak Attacks 2 | . 2 . . . . . . Combat Hostiles . | . . . . . . . . Follow-up Attacks . | . . . . . . . . Damage Inflicted 9747 | 287 1381 413 689 106 4206 632 2033 Guns 1084 | 287 382 82 151 . . 141 41 Cannons 430 | . . . . 106 137 170 17 Explosions 8035 | . 861 331 538 . 4069 261 1975 Melee 138 | . 138 . . . . . . Ramming 60 | . . . . . . 60 . Kinetic 3471 | 287 382 82 419 . 2060 200 41 Thermal 570 | . . . . 106 137 327 . Explosive 5443 | . 813 331 270 . 2009 45 1975 Electromagnetic 65 | . 48 . . . . . 17 Impact . | . . . . . . . . Slashing 138 | . 138 . . . . . . Piercing . | . . . . . . . . Highest Corruption 30 | . . . 2 2 30 . . Average Corruption 2 | . . . 2 2 27 . . Corruption Purged . | . . . . . . . . Corruption Blocked . | . . . . . . . . Effects 33 | . . . 18 13 2 . . Message Errors 7 | . . . 7 . . . . Matter Fused 9 | . . . 6 3 . . . Heat Flow Errors 9 | . . . 3 6 . . . Energy Discharges 3 | . . . 2 . 1 . . Data Loss (minor) 3 | . . . . 3 . . . Data Loss (major) 1 | . . . . 1 . . . Alerts 1 | . . . . . 1 . . Overload Shots . | . . . . . . . . Overflow Damage 253 | . 9 . 1 . 96 98 49 Projectiles 19 | . . . . . 19 . . Explosions 218 | . 5 . 1 . 77 86 49 Melee 16 | . 4 . . . . 12 . Knockbacks 1 | . . . . . . 1 . Impact 1 | . . . . . . 1 . Kinetic . | . . . . . . . . Secondary . | . . . . . . . . Self-Inflicted Damage 618 | . 34 33 . . 90 251 210 Shots 23 | . 2 2 . . 4 6 9 Rammed . | . . . . . . . . Targets Rammed 4 | . . . . . . 4 . Kicked 4 | . . . . . . 4 . Crushed . | . . . . . . . . Highest Temperature 619 | . 21 16 153 232 200 619 25 Average Temperature 93 | . 5 8 73 75 46 380 11 Received Heat Transfer 713 | . 42 69 114 . 259 136 93 Effects 11 | . . . . . . 11 . Shutdowns 2 | . . . . . . 2 . Energy Bleed 1 | . . . . . . 1 . Interference 2 | . . . . . . 2 . Matter Decay 1 | . . . . . . 1 . Short Circuit 1 | . . . . . . 1 . Damage (major) 2 | . . . . . . 2 . Damage (core) 2 | . . . . . . 2 . Siege Activations . | . . . . . . . . Martial Activations . | . . . . . . . . Shielding Activations . | . . . . . . . . Robots Disrupted 1 | . 1 . . . . . . Combat Hostiles . | . . . . . . . . Robots Corrupted 1 | . . . . . . 1 . Combat Hostiles . | . . . . . . . . Parts Fried 1 | . . . . . . 1 . Impact Corruptions 2 | . . . . . . 2 . Robots Melted 1 | . . . . 1 . . . Combat Hostiles 1 | . . . . 1 . . . Parts Melted 11 | . . . . 5 6 . . Heat Transferred 631 | . . . . 148 185 298 . Parts Sabotaged . | . . . . . . . . Parts Stolen . | . . . . . . . . Parts Stripped . | . . . . . . . . Power Chain Reactions . | . . . . . . . . Alert | -11 -10 -10 -10 -8 -8 -6 -6 ------- Run | Yrd Mat Min Sub Rec Scr Fac Low Maximum Alert Level 5 | . 1 . . . . 5 . Low Security (%) 89 | 100 96 100 . 100 . 32 . Level 1 1 | . 3 . . . . 1 . Level 2 . | . . . . . . 3 . Level 3 1 | . . . . . . 9 . Level 4 . | . . . . . . 4 . Level 5 3 | . . . . . . 25 . High Security 3 | . . . . . . 22 . Max Security . | . . . . . . . . Peak Influence 2762 | 15 209 154 . 55 . 2762 . Initial 63 | . . 63 . 37 . . . Average 209 | 1 68 40 . 9 . 1226 . Influence Increases 7212 | 40 603 331 205 125 10 5529 369 Destroy 0b10 Robot/C 3380 | . 320 200 100 80 . 2340 340 Destroy 0b10 Robot/NC 170 | 40 40 10 . 5 10 65 . Destroy Leader 582 | . 66 40 . . . 456 20 Allied During Kill 2356 | . . 25 30 39 . 2253 9 Successful Hack 15 | . 15 . . . . . . Select Force Hacks 30 | . 30 . . . . . . Disable Machine 225 | . 60 . . . . 165 . Anti-Garrison Action 150 | . . . . . . 150 . Destroy Structure 214 | . 57 56 . 1 . 100 . Lose Combat Pursuer 90 | . 15 . 75 . . . . Influence Decreases 5628 | 40 439 495 127 203 10 2868 1446 Entered New Map 1128 | . . 101 . 41 . . 986 Time Decay 1710 | 40 439 344 127 162 10 178 410 Lost Part 60 | . . 10 . . . . 50 Lost Ally 2730 | . . 40 . . . 2690 . Squads Dispatched 39 | . 2 1 . . . 36 . Investigation 9 | . 1 1 . . . 7 . Extermination 1 | . . . . . . 1 . Reinforcement 10 | . 1 . . . . 9 . Assault 7 | . . . . . . 7 . Garrison 12 | . . . . . . 12 . Intercept . | . . . . . . . . Searches Triggered . | . . . . . . . . Construction Impeded 1 | . . . . . . 1 . Haulers Reinforced . | . . . . . . . . Active Scanning Responses . | . . . . . . . . Cargo Convoy Interrupts . | . . . . . . . . Stealth | -11 -10 -10 -10 -8 -8 -6 -6 --------- Run | Yrd Mat Min Sub Rec Scr Fac Low Distress Signals 12 | . 2 . . . . 10 . Communications Jammed . | . . . . . . . . Distress Signals . | . . . . . . . . Times Spotted 146 | . 33 8 23 3 46 16 17 Peak Tracking Total 6 | . 5 3 4 1 6 3 5 Tactical Retreats 3 | . 1 . 2 . . . . Traps | -11 -10 -10 -10 -8 -8 -6 -6 ------- Run | Yrd Mat Min Sub Rec Scr Fac Low Traps Triggered 2 | . . . 2 . . . . Indirectly . | . . . . . . . . Trap Hack Attempts . | . . . . . . . . Triggered . | . . . . . . . . Disarmed . | . . . . . . . . Reprogrammed . | . . . . . . . . Reused . | . . . . . . . . Traps Extracted . | . . . . . . . . Installed . | . . . . . . . . Triggered . | . . . . . . . . Machines | -11 -10 -10 -10 -8 -8 -6 -6 ---------- Run | Yrd Mat Min Sub Rec Scr Fac Low Machines Disabled 38 | . 5 . 5 . 15 12 1 Max in Single Turn 3 | . 1 . 3 . 3 2 1 Garrison Access 1 | . . . . . . 1 . Machines Repaired . | . . . . . . . . Machines Dismantled . | . . . . . . . . Machines Sabotaged . | . . . . . . . . Overloaded Fab Kills . | . . . . . . . . Hacking | -11 -10 -10 -10 -8 -8 -6 -6 --------- Run | Yrd Mat Min Sub Rec Scr Fac Low Machines Accessed 31 | . 9 1 4 3 6 6 2 Terminals 12 | . 6 . . 3 . 3 . Fabricators . | . . . . . . . . Repair Stations 1 | . 1 . . . . . . Recycling Units 5 | . 2 . . . . 3 . Scanalyzers . | . . . . . . . . Garrison Access . | . . . . . . . . Total Hacks 112 | . 32 1 15 9 38 11 6 Successful 78 | . 12 1 15 2 38 4 6 Failed 34 | . 20 . . 7 . 7 . Catastrophic 8 | . . . . 3 . 5 . Database Lockouts . | . . . . . . . . Manual 41 | . 23 . . 7 . 11 . Terminals 41 | . 24 . . 9 . 8 . Fabricators . | . . . . . . . . Repair Stations 5 | . 5 . . . . . . Recycling Units 6 | . 3 . . . . 3 . Scanalyzers . | . . . . . . . . Garrison Access . | . . . . . . . . Terminal Hacks 63 | . . 1 15 2 38 1 6 Record 54 | . . . 12 . 37 . 5 Open Door 3 | . . 1 1 . . . 1 Terminal Index 1 | . . . . 1 . . . Fabricator Index 1 | . . . . . . 1 . Alert Level 1 | . . . . 1 . . . Proto ID Catalog 2 | . . . 1 . 1 . . Release Object 1 | . . . 1 . . . . Fabricator Hacks . | . . . . . . . . Repair Station Hacks 4 | . 4 . . . . . . Scan Component 2 | . 2 . . . . . . Repair 2 | . 2 . . . . . . Recycling Unit Hacks . | . . . . . . . . Scanalyzer . | . . . . . . . . Garrison Access Hacks . | . . . . . . . . Unauthorized Hacks 11 | . 8 . . . . 3 . Terminals 7 | . 7 . . . . . . Botnet 1 | . 1 . . . . . . Operators 1 | . 1 . . . . . . Skim 5 | . 5 . . . . . . Fabricators . | . . . . . . . . Repair Stations . | . . . . . . . . Recycling Units 4 | . 1 . . . . 3 . Tunnel 1 | . 1 . . . . . . Fedlink 3 | . . . . . . 3 . Scanalyzers . | . . . . . . . . Garrison Access . | . . . . . . . . Data Cores Recovered . | . . . . . . . . Used . | . . . . . . . . Hacking Detections 14 | . 8 . . 3 . 3 . Full Trace Events 3 | . . . . . . 3 . Feedback Events . | . . . . . . . . Feedback Blocked . | . . . . . . . . Robot Schematics Acquired . | . . . . . . . . Robots Built . | . . . . . . . . Authchips . | . . . . . . . . Time . | . . . . . . . . Total Robot Build Rating . | . . . . . . . . Part Schematics Acquired . | . . . . . . . . Parts Built . | . . . . . . . . Authchips . | . . . . . . . . Time . | . . . . . . . . Total Part Build Rating . | . . . . . . . . Parts Repaired 2 | . 2 . . . . . . Time 52 | . 52 . . . . . . Parts Recycled . | . . . . . . . . Recycled Matter . | . . . . . . . . Retrieved Matter . | . . . . . . . . Retrieved Components . | . . . . . . . . Parts Scanalyzed . | . . . . . . . . Part Schematics Acquired . | . . . . . . . . Parts Damaged . | . . . . . . . . Bothacking | -11 -10 -10 -10 -8 -8 -6 -6 ------------ Run | Yrd Mat Min Sub Rec Scr Fac Low Used RIF Installer . | . . . . . . . . Robots Hacked . | . . . . . . . . Non-combat . | . . . . . . . . Combat . | . . . . . . . . Robot Hacks Applied . | . . . . . . . . Relay Couplers Released 2 | . . . . . . 2 . Machine Destruction 2 | . . . . . . 2 . Fabnet Peak Effective % . | . . . . . . . . Robots Rewired 2 | . . . . . 2 . . Allies Hacked 2 | . . . . . . 2 . Hacks Repelled . | . . . . . . . . Allies | -11 -10 -10 -10 -8 -8 -6 -6 -------- Run | Yrd Mat Min Sub Rec Scr Fac Low Total Allies 245 | . . 3 12 . 2 228 . Largest Group 66 | . . 3 10 9 8 66 3 Highest-Rated Group 1925 | . . 40 190 171 152 1925 99 Highest-Rated Ally 33 | . . 16 19 19 19 33 33 Total Orders . | . . . . . . . . Ally Attacks 1049 | . . 19 25 26 59 918 2 Total Damage 18341 | . . 166 392 446 686 16605 46 Kills 156 | . . 5 6 3 9 133 . Allies Corrupted 2 | . . . . . . 2 . Allies Melted 4 | . . . . . 4 . . Intel | -11 -10 -10 -10 -8 -8 -6 -6 ------- Run | Yrd Mat Min Sub Rec Scr Fac Low Active Infowar (turns) 356 | 143 213 . . . . . . Seismic 356 | 143 213 . . . . . . Robot Analysis Total . | . . . . . . . . Derelict Logs Recovered 10 | . . 2 1 . 5 . 2 Drone Launches . | . . . . . . . . Drone Recoveries . | . . . . . . . . Exploration | -11 -10 -10 -10 -8 -8 -6 -6 ------------- Run | Yrd Mat Min Sub Rec Scr Fac Low Turns Passed 13031 | 279 1536 1154 3955 959 3512 652 984 Spaces Moved 8826 | 131 795 676 2670 667 2558 507 822 Core 2 | 2 . . . . . . . Treads 2246 | 129 768 676 673 . . . . Legs 6551 | . . . 1997 667 2558 507 822 Wheels 27 | . 27 . . . . . . Hover . | . . . . . . . . Flight . | . . . . . . . . Fastest Speed 50 | 50 125 160 130 130 130 110 73 Average Speed 134 | 158 158 160 137 130 130 115 103 Slowest Speed 200 | 160 160 160 160 130 130 200 115 Overloaded Moves 205 | . . . . . . . 205 Propulsion Burnouts . | . . . . . . . . Robots Hopped . | . . . . . . . . Potential Cave-ins 2 | . . . 2 . . . . Cave-ins Triggered 1 | . . . 1 . . . . Exploration Rate (%) 70 | 6 96 96 97 90 97 21 62 Regions Visited 7 Branch Regions 5 Pre-discovered Areas 8 | . 1 1 3 . 1 1 1 Known Exits Taken 3 | . . 1 1 . . 1 . Unknown Exits Taken 4 | 1 1 . . 1 1 . . Scrap Searched 24 | . . 3 12 . 5 . 4 Spaces Dug 28 | . . 7 21 . . . . Terrain Destroyed 791 | . 55 56 88 1 303 63 225 Melee . | . . . . . . . . Projectile 14 | . . . 4 1 1 8 . AOE 777 | . 55 56 84 . 302 55 225 Terrain Rammed . | . . . . . . . . Walls Destroyed . | . . . . . . . . Machines Disabled . | . . . . . . . . Actions | -11 -10 -10 -10 -8 -8 -6 -6 --------- Run | Yrd Mat Min Sub Rec Scr Fac Low Total 9702 | 167 986 733 2900 754 2689 549 924 Wait 431 | 4 105 30 109 79 21 5 78 Move 8819 | 130 794 675 2669 666 2557 506 822 Hop . | . . . . . . . . Pick Up 69 | 7 12 5 28 . 12 . 5 Fast Attach 24 | 7 2 . 4 1 2 8 . Attach 19 | . 1 1 4 . 2 8 3 Detach 8 | . . . . . 2 4 2 Swap 38 | . 12 5 13 1 4 . 3 Drop 62 | 1 7 4 32 2 14 2 . Fire 204 | 18 45 13 38 5 62 12 11 Melee 11 | . 8 . 3 . . . . Ram . | . . . . . . . . Kick 4 | . . . . . . 4 . Crush . | . . . . . . . . Escape Stasis . | . . . . . . . . Rewire 13 | . . . . . 13 . . Trap . | . . . . . . . . Miscellaneous . | . . . . . . . . Route ------- -11/Scrapyard -10/Materials (discovered 6 exits: *Mat x3 / *Min x2 / *Sub) -10/Mines (discovered 3 exits: *Mat x2 / *Sub) -10/Subcaves (discovered 3 exits: [*Mat x2] / *Rec) -8/Recycling (discovered 2 exits: *Fac / *Scr) -8/Scraptown (discovered 2 exits: *Fac x2) -6/Factory -6/Lower Caves History --------- Turn | Location | Event 59 | -11/Scrapyard | Discovered new exit (range 15) 280 | -11/Scrapyard | Entered Materials 300 | -10/Materials | Build established: Mutant 524 | -10/Materials | Discovered new exit (range 8) 687 | -10/Materials | Discovered new exit (range 10) 787 | -10/Materials | Discovered new exit (range 10) 957 | -10/Materials | Identified exit to Subcaves 957 | -10/Materials | Identified exit to Materials 1008 | -10/Materials | Learned Storage terminal intel 1100 | -10/Materials | Repaired Lgt. Armor Plating 1127 | -10/Materials | Repaired Grenade Launcher 1167 | -10/Materials | Learned 4 Recycling zone layouts 1816 | -10/Materials | Entered Mines 2021 | -10/Mines | Assisted by bots powering up and referring to "LRC-V3" 2055 | -10/Mines | Discovered exit to Materials (range 6) 2233 | -10/Mines | Received a Rocket Launcher from a helpful Derelict 2303 | -10/Mines | Learned location of Storage (-8) 2440 | -10/Mines | Discovered exit to Subcaves (range 11) 2649 | -10/Mines | Discovered exit to Materials (range 9) 2701 | -10/Mines | Met a Derelict shopkeep closing up shop 2970 | -10/Mines | Entered Subcaves 2970 | -10/Subcaves | Accompanied by 1 ally 2971 | -10/Subcaves | Identified exit to Recycling 2972 | -10/Subcaves | Shifting Twisted Machinery released Battle Cannon 3261 | -10/Subcaves | Visited triangular shrine 3271 | -10/Subcaves | Found Prototype Device 3271 | -10/Subcaves | Identified V3-11A's Pendant 3276 | -10/Subcaves | Befriended Subdweller 3295 | -10/Subcaves | Discovered new exit (range 16) 3371 | -10/Subcaves | Befriended Subdweller 3501 | -10/Subcaves | Befriended Subdweller 3501 | -10/Subcaves | Befriended Subdweller 4116 | -10/Subcaves | Visited 4L-MR0's lab 4134 | -10/Subcaves | Found Cargo Legs 4136 | -10/Subcaves | Attached Cargo Legs, gained temporary slots: Utility x2 4467 | -10/Subcaves | Learned Materials security intel 4661 | -10/Subcaves | Befriended Subdweller 4694 | -10/Subcaves | Ambushed by Subdweller buried in earth 4696 | -10/Subcaves | Befriended Subdweller 4808 | -10/Subcaves | Ambushed by Subdwellers from Twisted Machinery 4811 | -10/Subcaves | Befriended Subdweller 4811 | -10/Subcaves | Befriended Subdweller 4947 | -10/Subcaves | Discovered new exit (range 8) 5020 | -10/Subcaves | Visited Clippyterm 5024 | -10/Subcaves | Learned location of Extension (-5) 5024 | -10/Subcaves | Learned location of Section 7 (-2) 5082 | -10/Subcaves | Shifting Twisted Machinery released Battle Rifle 5236 | -10/Subcaves | Befriended Subdweller 5241 | -10/Subcaves | Befriended Subdweller 5395 | -10/Subcaves | Learned location of Zion (-7) 5395 | -10/Subcaves | Met a Zionite searching for "candidates" 5431 | -10/Subcaves | Befriended Subdweller 5439 | -10/Subcaves | Crushed by falling debris 5652 | -10/Subcaves | Ambushed by Subdweller buried in earth 5656 | -10/Subcaves | Befriended Subdweller 5983 | -10/Subcaves | Shifting Twisted Machinery released Battle Cannon 6925 | -10/Subcaves | Entered Recycling 6925 | -8/Recycling | Accompanied by 9 allies 7138 | -8/Recycling | Scanned before Scraplab entrance 7164 | -8/Recycling | Entered Scraplab 7336 | -8/Recycling | Discovered new exit (range 5) 7830 | -8/Recycling | Discovered new exit (range 3) 7884 | -8/Recycling | Entered Scraptown 7884 | -8/Scraptown | Accompanied by 8 allies 7887 | -8/Scraptown | System corruption cleaned by C-Scrubber 8185 | -8/Scraptown | Heard Great Nut preacher, LISTEN AND RECITE! 8520 | -8/Scraptown | Visited CPS Storage 8571 | -8/Scraptown | Visited IN-MT5's Study 8843 | -8/Scraptown | Scanned Subdweller tech in exchange for log data 8848 | -8/Scraptown | Learned 12 Research zone layouts 8850 | -8/Scraptown | Learned Factory security intel 8852 | -8/Scraptown | Learned location of Testing (-3) 8854 | -8/Scraptown | Learned Research terminal intel 8876 | -8/Scraptown | Discovered new exit (range 5) 9008 | -8/Scraptown | Visited The Evicted 9041 | -8/Scraptown | Visited Shadow of the Wyrm 9136 | -8/Scraptown | Visited Spacefarers 9221 | -8/Scraptown | Visited Fellowship of the Rings 9249 | -8/Scraptown | Visited Awakened 9309 | -8/Scraptown | Visited UFD Registry 9309 | -8/Scraptown | Registered with UFD as "Novaspreader" 9370 | -8/Scraptown | Visited Curators Association 9406 | -8/Scraptown | Visited Infowarlord's Domain 9440 | -8/Scraptown | Visited Supply Room 9549 | -8/Scraptown | Discovered new exit (range 5) 9589 | -8/Scraptown | Visited Science Guys 9637 | -8/Scraptown | Visited A0-MCA Data Center 9645 | -8/Scraptown | Given a C+ rating by A0-MCA 9651 | -8/Scraptown | Found A0-MCA's Component Scanner 9703 | -8/Scraptown | Visited Scrap Suit Storage 9764 | -8/Scraptown | Visited LU-1G1's Boring Crew 10011 | -8/Scraptown | Delivered Scrap Shield to a Scientist 10175 | -8/Scraptown | Visited Junk Repository 10206 | -8/Scraptown | Visited Chapter 10 10244 | -8/Scraptown | Visited Junk Repository 10341 | -8/Scraptown | Met Optimus 10341 | -8/Scraptown | Accepted into 0bPrime 10511 | -8/Scraptown | Civil war broke out across Scraptown 10531 | -8/Scraptown | Found System Spiker 10577 | -8/Scraptown | Lost 9 allies 10601 | -8/Scraptown | Found Exp. Sensor Array 10672 | -8/Scraptown | Found Prototype Leg 10685 | -8/Scraptown | Found Siege Cannon Replica 10734 | -8/Scraptown | Found PL-3XN's Ring of Power 10800 | -8/Scraptown | Destroyed 7 combat bots 10855 | -8/Scraptown | Lost 11 allies 10857 | -8/Scraptown | Destroyed 9 combat bots 10905 | -8/Scraptown | Lost 4 allies 10906 | -8/Scraptown | Core integrity fell below 50% 11189 | -8/Scraptown | Lost 3 allies 11255 | -8/Scraptown | Destroyed 10 combat bots 11265 | -8/Scraptown | Lost 5 allies 11371 | -8/Scraptown | System corruption reached 10% 11371 | -8/Scraptown | System corruption reached 30% 11396 | -8/Scraptown | Entered Factory 11396 | -6/Factory | Accompanied by 2 allies 11396 | -6/Factory | Evolved 8 slots: Power x1, Propulsion x3, Utility x3, Weapon x1 11396 | -6/Factory | Identified Potential Leg 11397 | -6/Factory | Identified exit to Lower Caves 11450 | -6/Factory | Garrison activated, responded to threat 11469 | -6/Factory | Found Prototype Launcher 11469 | -6/Factory | Identified Rocket Array 11473 | -6/Factory | Found Rocket Array 11504 | -6/Factory | Garrison activated, responded to threat 11583 | -6/Factory | Garrison activated, responded to threat 11702 | -6/Factory | Loaded intel: 8 recycling unit locations 11746 | -6/Factory | First assault squad dispatched 11749 | -6/Factory | Build established: Commander-Mutant 11847 | -6/Factory | Learned location of Protoforge (-2) 11853 | -6/Factory | Garrison activated, responded to threat 11902 | -6/Factory | High security lockdown imminent 11936 | -6/Factory | Lost 13 allies 11982 | -6/Factory | High security lockdown engaged 12010 | -6/Factory | Garrison activated, responded to threat 12048 | -6/Factory | Lost 15 allies 12048 | -6/Factory | Entered Lower Caves 12048 | -6/Lower Caves | Accompanied by 3 allies 12050 | -6/Lower Caves | UFD Scientist delivered a prototype 12051 | -6/Lower Caves | Found Enh. Scrap Shield 12114 | -6/Lower Caves | Entered an active Warlord outpost 12135 | -6/Lower Caves | Learned Factory terminal intel 12135 | -6/Lower Caves | Learned Armory garrison access intel 12342 | -6/Lower Caves | Build established: Hacker-Gunner 12436 | -6/Lower Caves | Attracted the attention of an 0b10 checkpoint 12693 | -6/Lower Caves | Attracted the attention of an 0b10 base 13032 | -6/Lower Caves | Self-destructed Last Messages --------------- 12919_ Enh. Scrap Shield absorbs Scrap Suit into its structure (+28). 12920_ Enh. Scrap Shield absorbs Mak. Microdissipator Network into its structure (+4). 12922_ Enh. Scrap Shield absorbs Ovr. Titanium Leg into its structure (+9). 12929_ Enh. Scrap Shield absorbs Mak. Light Armor Plating into its structure (+34). 12975_ Enh. Scrap Shield absorbs Mak. Microdissipator Network into its structure (+1). 12977_ Enh. Scrap Shield absorbs Ovr. Pulse Rifle into its structure (+1). 13031_ Searching scrap... 13031_ Found Proton Cannon. 13031_ Found Adv. Sensor Array. 13031_ Found Adv. Terrain Scanner. 13031_ Found 43 Matter. 13032_ Acquired 43 matter. Map ----- +----------------------------------------------------+ | ??????????????????????????# #??????????#? | | ??????????????????????????##### ######???????????? | | ??????????????????????????????# #???????????????? | | ??????????????????????????????# #???????????????## | | ??????????????????????????????# #????????????????? | | ???????????????????????????#### #####????????????? | | ???????????????????????????# #????????????? | | ???????????????????????????## ### #?????###????? | | ???????????????????????????# # ### ####### ????? | | ???????????????????????????## ## ??### | | ???????????????????????????# ## #?## # | | ???????????????????????????## ######### ## ### # | | ????????????????????????????### ##????# ## | | ?????????????????????????????## #????# ## ### | | ?????????????????????????????# #????# ## #?## | | ?????????????????????????????# ##???# ## #??### | | ?????????????????????????????# ##??# #????# | | ????????????????????????####### #### ####????# | | ????????????????????????# #???????# | | ????????????????????????# ! ######??? | | ???????????????????###### ####+###+## # ##?? | | ??????????????????## # " "# ##? | | ??????????????????# # "# # ##? | | ?????????????????# ### #""" " # ## | | ?????????????????## ???# # | | ??????????????????# ????#@]# # ## #? | | ????????????????????????#!!# " # ## # #? | | ????????????????????????# # " ##? | | ????????????????????????# # ""# #?? | | ????????????????????????# #""""" " # # #?? | | ???????????????????????? ###### ### ##?? | | ???????????????????????? ###??? | | ????????????????????????# #???? | | ????????????????????????### ## ## ####### #???? | | ???????????????????????????##?# # # # ## ##??? | | ??????????????????????????????# ### #### #### | | ??????????????????????????????# # ## ## | | ????????????????????????????? ## ## ### | | ????????????????????????????? ## ##?## | | ????????????????????????????? #?# ##?### | | ????????????????????????????????# #### #### # | | ???????????????????????????????# ???# # ## # | | ??????????????????????????????" ????# #### # | | ??????????????????????????????"""?????### #?## | | ????????????????????????????????????????### ### | | ?????????????????????????????????????????# # | | ?????????????????????????????????????????# | | ?????????????????????????????????????????## | | ??????????????????????????????????????????#### | | ????????????????????????????????????????????# | +----------------------------------------------------+ Best States ------------- Heat Dissipation 37 Energy Generation 29 Energy Capacity 300 Matter Stores 300 Matter Capacity 300 Sight Range 16 Terrain Scan Density 10 Armor Coverage 800 Evasion (%) 60 Recoil Reduction 2 Offensive Hacking 22 Defensive Hacking 11 Item Schematics ----------------- None Robot Schematics ------------------ None Fabricated ------------ Nothing Repaired ---------- Lgt. Armor Plating | 62% | -10/Materials Grenade Launcher | 68% | -10/Materials Alien Tech Used ----------------- None Achievements -------------- None Challenges ------------ None Game ------ Seed ExperimentalGravmagDiverter Manual? 0 Play Time 02:05:23 Cumulative 135.0 hours Start 2025.07.15 @ 06:21:22 End 2025.07.17 @ 08:51:14 Sessions 3 Manual Loads 0 Difficulty Rogue Special Mode None Game No. 89 Rogue 89 Adventurer 0 Explorer 0 Win Type - Total 2 Types 2/0/0/0/0/0/0/0/0/0 Lore% 41 Gallery% 49 Achievement% 51 Wizard Run 0 Options --------- Layout 1 ASCII 0 Keyboard 1 Movement Vi Keybinds 1 Fullscreen 1 Font 24/Smallcaps Map View 50x40 Zoom Use 0% Tactical HUD 1 Map Filters NONE Filters NONE Steam 1 RUN: e1fa964e-f3b8-499e-aaa8-20d3c65ae49b